Cogmind - Beta 12 @@@ ROGUE MODE // 2023.07.09 @ 20:59:34 // Winter2019/RPGLIKE Player: PionFour Result: Destroyed by X-57 Shotgunner with Shotgun Performance ------------- Evolutions (2) 1000 Regions Visited (5) 1000 Robots Destroyed (66) 330 Value Destroyed (1816) 1816 Prototype IDs (21) 420 Alien Tech Used (0) 0 Bonus (707) 707 TOTAL SCORE: 5273 Bonus ------- High Alert Combat Kills 407 Aligned with FarCom 300 Cogmind --------- Core Integrity 0/850 Matter 147/350 Energy 28/160 System Corruption 0% Temperature Warning (344) Movement Treading (240) Ox1 Location -8/Materials Parts ------- > --- POWER (2) -------- Light Nuclear Core > --- PROPULSION (3) --- Light Treads Flight Unit Flight Unit > --- UTILITY (5) ------ Visual Processing Unit Improved Signal Interpreter Improved Terrain Scanner Reactive Plating Shield Generator > --- WEAPON (4) ------- XL Autogun Array > --- INVENTORY (4) ---- Flight Unit PSU Rigger Guided Plasma Cannon Improved Datajack Peak State ------------ > --- POWER ------------ Light Nuclear Core > --- PROPULSION ------- Light Treads Flight Unit Flight Unit > --- UTILITY ---------- Visual Processing Unit Improved Signal Interpreter Improved Terrain Scanner Shield Generator PSU Rigger > --- WEAPON ----------- XL Autogun Array > --- INVENTORY -------- Flight Unit Guided Plasma Cannon Improved Datajack [Rating: 61] Favorites ----------- Power Ion Engine Engine Ion Engine Power Core Light Nuclear Core Propulsion Flight Unit Treads Light Treads Leg Aluminum Leg Wheel Wheel Hover Unit Hover Unit Flight Unit Flight Unit Utility Improved Terrain Scanner Device Improved Terrain Scanner Storage Large Matter Pod Processor Signal Interpreter Hackware Hacking Suite Protection Light Armor Plating Weapon Grenade Launcher Energy Gun Particle Gun Energy Cannon Guided Plasma Cannon Ballistic Gun Improved Assault Rifle Launcher Grenade Launcher Special Melee Weapon Datajack Build | -11 -10 -10 -10 -9 -8 ------- Run | Jun Mat Min Exi Min Mat Slots Evolved 10 | 1 3 1 1 . 4 Power 1 | . . . . . 1 Propulsion 2 | . 1 1 . . . Utility 4 | 1 2 . 1 . . Weapon 3 | . . . . . 3 Parts Attached 56 | 2 30 4 5 9 6 Power 2 | . . 1 . . 1 Engine . | . . . . . . Core 2 | . . 1 . . 1 Reactor . | . . . . . . Propulsion 15 | 1 8 2 . 3 1 Treads 1 | . . . . . 1 Leg . | . . . . . . Wheel 2 | 1 1 . . . . Hover 2 | . 2 . . . . Flight 10 | . 5 2 . 3 . Utility 15 | 1 5 . 3 3 3 Device 5 | 1 2 . 1 1 . Storage 2 | . 1 . 1 . . Processor 3 | . 1 . . . 2 Hackware 1 | . 1 . . . . Protection 4 | . . . 1 2 1 Artifact . | . . . . . . Weapon 24 | . 17 1 2 3 1 Energy Gun 1 | . . 1 . . . Energy Cannon 2 | . . . 1 1 . Ballistic Gun 9 | . 7 . . 1 1 Ballistic Cannon . | . . . . . . Launcher 10 | . 9 . . 1 . Special Weapon . | . . . . . . Impact Weapon . | . . . . . . Slashing Weapon . | . . . . . . Piercing Weapon . | . . . . . . Special Melee Weapon 2 | . 1 . 1 . . Unidentified Prototypes 4 | . 1 . 2 . 1 Parts Lost 1 | . . 1 . . . Power . | . . . . . . Propulsion 1 | . . 1 . . . Utility . | . . . . . . Weapon . | . . . . . . Highest Loss Streak 1 | . . 1 . . . To Critical Strikes . | . . . . . . Average Slot Usage (%) 97 | . 99 99 99 100 69 Engine 7 | . 13 . . . . Core 4 | . . 11 10 10 5 Wheel 1 | . 2 . . . . Hover 4 | . 8 . . . . Flight 20 | . 14 29 30 30 14 Device 25 | . 24 23 23 34 21 Storage 3 | . 5 . 4 . . Processor 10 | . 9 11 10 10 10 Hackware 6 | . 7 11 8 . . Protection 1 | . . . 1 5 2 Energy Cannon 1 | . . . 2 8 . Ballistic Gun 2 | . 3 . . . 6 Launcher 6 | . 9 8 . 1 . Naked Turns . | . . . . . . Heaviest Build 33 | 7 13 10 22 22 33 Greatest Support 30 | 10 18 22 22 22 30 Greatest Overweight (x) 3 | . 3 . . . 1 Average Overweight (x) . | . . . . . . Largest Inventory Capacity 4 | 1 2 3 4 4 4 Average Capacity 2 | . 1 2 3 4 4 Most Carried 4 | 1 2 3 4 4 4 Average Carried 2 | . 1 2 2 4 2 Final Capacity 4 | 1 2 3 4 4 4 Final Carried 4 | . 2 3 4 4 4 Class Distribution -------------------- 56% | Scavenger-Scout 18% | Hacker-Scout 12% | Mutant 6% | Scout 5% | Scavenger-Skirmisher Dominant Class ---------------- Scavenger-Scout | -10/Materials Scavenger-Scout | -10/Mines Scavenger-Scout | -10/Exiles Scavenger-Scout | -9/Mines Scavenger-Skirmisher | -8/Materials Resources | -11 -10 -10 -10 -9 -8 ----------- Run | Jun Mat Min Exi Min Mat Matter Collected 2384 | 225 1390 529 76 127 37 Remotely 54 | . 54 . . . . Salvage Created 1204 | 25 671 223 . 99 186 Parts 100 | 5 71 10 . 6 8 Haulers Intercepted 2 | . 2 . . . . Recyclers Shooed 1 | . . . . 1 . Parts Field Recycled . | . . . . . . Retrieved Matter . | . . . . . . Parts Self-Destructed . | . . . . . . Prevented . | . . . . . . Kills | -11 -10 -10 -10 -9 -8 ------- Run | Jun Mat Min Exi Min Mat Combat Hostiles Destroyed 57 | . 27 24 . 4 2 Guns 4 | . 2 1 . . 1 Cannons 2 | . . . . 1 1 AOE 51 | . 25 23 . 3 . Classes Destroyed 13 | 1 8 2 . . 2 Worker 6 | . 5 1 . . . Builder 2 | . 2 . . . . Tunneler 5 | 2 3 . . . . Hauler 2 | . 2 . . . . Recycler 2 | . 1 . . 1 . Operator 2 | . 2 . . . . Watcher 4 | . 3 . . . 1 Swarmer 16 | . 3 9 . 4 . Grunt 26 | . 24 2 . . . Sentry 1 | . . . . . 1 Demolisher 1 | . . 1 . . . Heavy 1 | . . . . . 1 Assembled 12 | . . 12 . . . Best Kill Streak 12 | 1 5 12 . 3 1 Combat Bots Only 11 | . 5 11 . 3 1 Max Kills in Single Turn 3 | 1 3 3 . 3 1 Gunslinging . | . . . . . . Exploded 3 | . 3 3 . 3 . Melee . | . . . . . . Uniques/NPCs Destroyed . | . . . . . . Combat | -11 -10 -10 -10 -9 -8 -------- Run | Jun Mat Min Exi Min Mat Damage Taken 1612 | . 640 510 . . 462 Core 1274 | . 533 439 . . 302 Absorbed by Shields 31 | . . . . . 31 Redirected to Core 855 | . 329 232 . . 294 Regen/Repaired (Parts) 49 | . 5 . . . 44 Core Remaining (%) 54 | 100 . . . 8 . Volleys Fired 225 | 6 158 38 . 7 16 Largest 1 | 1 1 1 . 1 1 Hottest 120 | 20 30 65 . 120 120 Shots Fired 225 | 6 158 38 . 7 16 Gun 72 | 6 44 8 . 2 12 Cannon 8 | . . . . 4 4 Launcher 145 | . 114 30 . 1 . Special . | . . . . . . Kinetic 64 | 6 44 . . 2 12 Thermal 16 | . . 8 . 4 4 Explosive 145 | . 114 30 . 1 . Electromagnetic . | . . . . . . Robot Hit Streak 17 | 4 10 9 . 12 17 Robot Miss Streak 5 | 2 5 5 . . 2 Penetration Max . | . . . . . . Secondary Targets . | . . . . . . Shots Hit Robots 79 | 4 42 13 4 3 13 Core Hits 124 | 4 68 42 . 5 5 Critical Kills 1 | . 1 . . . . Critical Parts Destroyed . | . . . . . . Critical Strikes 1 | . 1 . . . . Destroy 1 | . 1 . . . . Melee Attacks 4 | . . . 4 . . Impact . | . . . . . . Slashing . | . . . . . . Piercing . | . . . . . . Sneak Attacks 4 | . . . 4 . . Combat Hostiles . | . . . . . . Follow-up Attacks . | . . . . . . Damage Inflicted 5646 | 29 2994 1358 . 421 844 Guns 1337 | 29 462 109 . 29 708 Cannons 168 | . . . . 32 136 Explosions 4085 | . 2476 1249 . 360 . Melee . | . . . . . . Ramming 56 | . 56 . . . . Kinetic 1228 | 29 462 . . 29 708 Thermal 421 | . . 109 . 176 136 Explosive 3941 | . 2476 1249 . 216 . Electromagnetic . | . . . . . . Impact . | . . . . . . Slashing . | . . . . . . Piercing . | . . . . . . Highest Corruption . | . . . . . . Average Corruption . | . . . . . . Corruption Purged . | . . . . . . Corruption Blocked . | . . . . . . Overload Shots . | . . . . . . Overflow Damage 132 | . 27 39 . 66 . Projectiles . | . . . . . . Explosions 132 | . 27 39 . 66 . Melee . | . . . . . . Knockbacks . | . . . . . . Impact . | . . . . . . Kinetic . | . . . . . . Secondary . | . . . . . . Self-Inflicted Damage 328 | . 208 120 . . . Shots 14 | . 7 7 . . . Rammed 6 | . 6 . . . . Targets Rammed 6 | . 6 . . . . Kicked . | . . . . . . Crushed . | . . . . . . Highest Temperature 445 | . 10 227 . 159 445 Average Temperature 81 | . 3 69 . 58 200 Received Heat Transfer 325 | . 198 40 . . 87 Effects 2 | . . . . . 2 Shutdowns 1 | . . . . . 1 Interference 1 | . . . . . 1 Siege Activations . | . . . . . . Robots Corrupted . | . . . . . . Combat Hostiles . | . . . . . . Parts Fried . | . . . . . . Impact Corruptions . | . . . . . . Robots Melted . | . . . . . . Combat Hostiles . | . . . . . . Parts Melted 2 | . . . . . 2 Heat Transferred 809 | . . 259 . 230 320 Parts Sabotaged . | . . . . . . Parts Stolen . | . . . . . . Parts Stripped . | . . . . . . Power Chain Reactions . | . . . . . . Missiles Intercepted . | . . . . . . Alert | -11 -10 -10 -10 -9 -8 ------- Run | Jun Mat Min Exi Min Mat Peak Influence 1204 | 10 1204 977 . 180 195 Initial 364 | . 6 364 . . 70 Average 532 | 4 656 705 . 127 145 Maximum Alert Level 4 | . 4 3 . . . Low Security (%) 29 | 100 8 . . 100 100 Level 1 2 | . 5 . . . . Level 2 34 | . 43 56 . . . Level 3 29 | . 38 43 . . . Level 4 3 | . 5 . . . . Level 5 . | . . . . . . High Security . | . . . . . . Max Security . | . . . . . . Squads Dispatched 9 | . 7 . . . 2 Investigation 6 | . 6 . . . . Extermination . | . . . . . . Reinforcement 3 | . 1 . . . 2 Assault . | . . . . . . Garrison . | . . . . . . Intercept . | . . . . . . Searches Triggered . | . . . . . . Construction Impeded . | . . . . . . Haulers Reinforced . | . . . . . . Active Scanning Responses . | . . . . . . Cargo Convoy Interrupts . | . . . . . . Stealth | -11 -10 -10 -10 -9 -8 --------- Run | Jun Mat Min Exi Min Mat Distress Signals 3 | . 2 1 . . . Communications Jammed . | . . . . . . Distress Signals . | . . . . . . Times Spotted 78 | . 39 24 . 2 13 Peak Tracking Total 8 | . 5 7 . 1 8 Tactical Retreats 4 | . 1 1 . 1 1 Traps | -11 -10 -10 -10 -9 -8 ------- Run | Jun Mat Min Exi Min Mat Traps Triggered 2 | . 2 . . . . Indirectly . | . . . . . . Trap Hack Attempts . | . . . . . . Triggered . | . . . . . . Disarmed . | . . . . . . Reprogrammed 2 | . 2 . . . . Reused 1 | . 1 . . . . Traps Extracted . | . . . . . . Installed . | . . . . . . Triggered 1 | . 1 . . . . Machines | -11 -10 -10 -10 -9 -8 ---------- Run | Jun Mat Min Exi Min Mat Machines Disabled 47 | . 33 8 . 4 2 Max in Single Turn 3 | . 3 2 . 1 1 Machines Repaired . | . . . . . . Machines Sabotaged . | . . . . . . Overloaded Fab Kills . | . . . . . . Hacking | -11 -10 -10 -10 -9 -8 --------- Run | Jun Mat Min Exi Min Mat Machines Accessed 13 | . 10 . 1 . 2 Terminals 8 | . 7 . . . 1 Fabricators . | . . . . . . Repair Stations 2 | . 1 . . . 1 Recycling Units 2 | . 2 . . . . Scanalyzers . | . . . . . . Garrison Access . | . . . . . . Total Hacks 53 | . 45 . 1 . 7 Successful 37 | . 31 . 1 . 5 Failed 16 | . 14 . . . 2 Catastrophic 3 | . 3 . . . . Database Lockouts . | . . . . . . Manual 9 | . 8 . 1 . . Terminals 42 | . 38 . . . 4 Fabricators . | . . . . . . Repair Stations 5 | . 2 . . . 3 Recycling Units 5 | . 5 . . . . Scanalyzers . | . . . . . . Garrison Access . | . . . . . . Terminal Hacks 30 | . 26 . 1 . 3 Record 5 | . 4 . 1 . . Prototype ID Bank 3 | . 3 . . . . Branch Access Points 1 | . 1 . . . . Terminal Index 1 | . 1 . . . . Alert Level 2 | . 1 . . . 1 Unreport Threat 4 | . 4 . . . . Locate Traps 3 | . 2 . . . 1 Reprogram Traps 1 | . 1 . . . . Dispatch Records 3 | . 3 . . . . Maintenance Status 1 | . 1 . . . . Patrol Status 1 | . 1 . . . . Transport Status 1 | . 1 . . . . Reinforcement Status 1 | . . . . . 1 Hauler Manifests 2 | . 2 . . . . Zone Layout 1 | . 1 . . . . Fabricator Hacks . | . . . . . . Repair Station Hacks 4 | . 2 . . . 2 Scan Component 2 | . 1 . . . 1 Repair 2 | . 1 . . . 1 Recycling Unit Hacks 2 | . 2 . . . . Report Inventory 2 | . 2 . . . . Scanalyzer . | . . . . . . Garrison Access Hacks . | . . . . . . Unauthorized Hacks 1 | . 1 . . . . Terminals 1 | . 1 . . . . Assimilate 1 | . 1 . . . . Fabricators . | . . . . . . Repair Stations . | . . . . . . Recycling Units . | . . . . . . Scanalyzers . | . . . . . . Garrison Access . | . . . . . . Data Cores Recovered . | . . . . . . Used . | . . . . . . Hacking Detections 10 | . 9 . . . 1 Full Trace Events 8 | . 8 . . . . Feedback Events . | . . . . . . Feedback Blocked . | . . . . . . Robot Schematics Acquired . | . . . . . . Robots Built . | . . . . . . Authchips . | . . . . . . Time . | . . . . . . Total Robot Build Rating . | . . . . . . Part Schematics Acquired . | . . . . . . Parts Built . | . . . . . . Authchips . | . . . . . . Time . | . . . . . . Total Part Build Rating . | . . . . . . Parts Repaired 2 | . 1 . . . 1 Time 74 | . 36 . . . 38 Parts Recycled . | . . . . . . Recycled Matter . | . . . . . . Retrieved Matter . | . . . . . . Retrieved Components . | . . . . . . Parts Scanalyzed . | . . . . . . Part Schematics Acquired . | . . . . . . Parts Damaged . | . . . . . . Bothacking | -11 -10 -10 -10 -9 -8 ------------ Run | Jun Mat Min Exi Min Mat Used RIF Installer . | . . . . . . Robots Hacked 4 | . . . 4 . . Non-combat 3 | . . . 3 . . Combat 1 | . . . 1 . . Robot Hacks Applied 4 | . . . 4 . . parse_system 4 | . . . 4 . . Relay Couplers Released . | . . . . . . Fabnet Peak Effective % . | . . . . . . Robots Rewired . | . . . . . . Allies Hacked . | . . . . . . Hacks Repelled . | . . . . . . Allies | -11 -10 -10 -10 -9 -8 -------- Run | Jun Mat Min Exi Min Mat Total Allies 3 | . . . . 3 . Largest Group 3 | . . . . 3 3 Highest-Rated Group 40 | . . . . 40 40 Highest-Rated Ally 16 | . . . . 16 16 Total Orders . | . . . . . . Ally Attacks 10 | . . . . . 10 Total Damage 97 | . . . . . 97 Kills . | . . . . . . Allies Corrupted . | . . . . . . Allies Melted . | . . . . . . Intel | -11 -10 -10 -10 -9 -8 ------- Run | Jun Mat Min Exi Min Mat Robot Analysis Total . | . . . . . . Derelict Logs Recovered 5 | . . 2 . 3 . Drone Launches . | . . . . . . Drone Recoveries . | . . . . . . Exploration | -11 -10 -10 -10 -9 -8 ------------- Run | Jun Mat Min Exi Min Mat Turns Passed 2594 | 88 1350 375 314 293 174 Spaces Moved 4506 | 41 2001 809 873 715 67 Core 10 | . 9 . . . 1 Treads 50 | . . . . . 50 Legs 2 | 2 . . . . . Wheels 146 | 39 107 . . . . Hover 521 | . 521 . . . . Flight 3777 | . 1364 809 873 715 16 Fastest Speed 34 | 80 37 34 34 34 34 Average Speed 41 | 81 45 35 34 34 151 Slowest Speed 240 | 120 200 37 34 34 240 Overloaded Moves . | . . . . . . Propulsion Burnouts . | . . . . . . Robots Hopped 18 | . 5 2 . 11 . Cave-ins Triggered . | . . . . . . Exploration Rate (%) 66 | 4 98 98 92 98 10 Regions Visited 5 Branch Regions 3 Pre-discovered Areas 1 | . . . 1 . . Known Exits Taken 4 | . 1 1 1 1 . Unknown Exits Taken 1 | 1 . . . . . Scrap Searched 6 | . . 3 . 3 . Spaces Dug 26 | . 9 17 . . . Terrain Destroyed 895 | . 679 195 . 10 11 Melee . | . . . . . . Projectile 11 | . . . . . 11 AOE 884 | . 679 195 . 10 . Terrain Rammed . | . . . . . . Walls Destroyed . | . . . . . . Machines Disabled . | . . . . . . Actions | -11 -10 -10 -10 -9 -8 --------- Run | Jun Mat Min Exi Min Mat Total 4998 | 90 2279 856 889 748 136 Wait 144 | 40 45 2 . 19 38 Move 4465 | 40 1990 804 872 692 67 Hop 18 | . 5 2 . 11 . Pick Up 21 | 1 11 1 2 . 6 Fast Attach 22 | 1 10 3 2 5 1 Attach 9 | 1 3 . 2 . 3 Detach 2 | . . . 1 . 1 Swap 25 | . 17 1 1 4 2 Drop 32 | 1 14 1 5 9 2 Fire 225 | 6 158 38 . 7 16 Melee 4 | . . . 4 . . Ram 6 | . 6 . . . . Kick . | . . . . . . Crush . | . . . . . . Escape Stasis . | . . . . . . Rewire . | . . . . . . Trap . | . . . . . . Miscellaneous 25 | . 20 4 . 1 . Route ------- -11/Junkyard -10/Materials (discovered 4 exits: *Mat x3 / *Min) -10/Mines (discovered 3 exits: *Mat x2 / *Exi) -10/Exiles (discovered 2 exits: *Min x2) -9/Mines (discovered 2 exits: *Mat x2) -8/Materials (discovered 1 exit: Fac) History --------- Turn | Location | Event 1 | -11/Junkyard | Discovered new exit (range 1) 6 | -11/Junkyard | Upgraded with Utility slot (x1) 89 | -11/Junkyard | Entered Materials 165 | -10/Materials | Discovered new exit (range 14) 217 | -10/Materials | Discovered new exit (range 14) 231 | -10/Materials | Upgraded with Propulsion slot (x1) 243 | -10/Materials | Upgraded with Utility slot (x1) 306 | -10/Materials | Identified exit to Mines 306 | -10/Materials | Reached level 2 314 | -10/Materials | Build established: Mutant 323 | -10/Materials | Upgraded with Utility slot (x1) 332 | -10/Materials | Identified exit to Materials 748 | -10/Materials | Discovered exit to Materials (range 7) 787 | -10/Materials | Reached level 3 937 | -10/Materials | Repaired Broken Flight Unit 938 | -10/Materials | Build established: Hacker-Scout 1059 | -10/Materials | Discovered exit to Materials (range 10) 1104 | -10/Materials | Reached level 4 1245 | -10/Materials | Build established: Scavenger-Scout 1419 | -10/Materials | Reached level 5 1439 | -10/Materials | Entered Mines 1453 | -10/Mines | Discovered exit to Materials (range 15) 1472 | -10/Mines | Assembled infested the area 1510 | -10/Mines | Discovered exit to Materials (range 8) 1572 | -10/Mines | Destroyed 11 combat bots 1577 | -10/Mines | Deemed a non-threat by the Exiles lab entrance 1577 | -10/Mines | Discovered new exit (range 5) 1604 | -10/Mines | Upgraded with Propulsion slot (x1) 1657 | -10/Mines | Learned Materials garrison access intel 1664 | -10/Mines | Core integrity fell below 50% 1678 | -10/Mines | Reached level 6 1701 | -10/Mines | Destroyed 7 combat bots 1730 | -10/Mines | Core integrity fell below 20% 1772 | -10/Mines | Found a hidden stash of uninstalled traps 1792 | -10/Mines | Learned Materials terminal intel 1813 | -10/Mines | Identified exit to Exiles 1814 | -10/Mines | Entered Exiles 1820 | -10/Exiles | Discovered new exit (range 15) 1824 | -10/Exiles | Identified exit to Mines 1832 | -10/Exiles | Met 8R-AWN 1840 | -10/Exiles | Met EX-HEX 1852 | -10/Exiles | Met EX-BIN 1864 | -10/Exiles | Met EX-DEC 1866 | -10/Exiles | Learned location of Zion (-6) 1892 | -10/Exiles | Upgraded with Utility slot (x1) 1913 | -10/Exiles | Visited The Gauntlet 1970 | -10/Exiles | Discovered exit to Mines (range 14) 2012 | -10/Exiles | Aligned with FarCom system 2013 | -10/Exiles | Given EX-Vault access code 2021 | -10/Exiles | Opened EX-Vault 2024 | -10/Exiles | Found Prototype Device 2025 | -10/Exiles | Identified PSU Rigger 2030 | -10/Exiles | Found Prototype Energy Cannon 2030 | -10/Exiles | Identified Gui. Plasma Cannon 2038 | -10/Exiles | Warned to stay clear of 0b10 Research branches 2096 | -10/Exiles | Found Prototype Ballistic Gun 2128 | -10/Exiles | Stole three prototypes: PSU Rigger, Gui. Plasma Cannon, XL Autogun Array 2128 | -10/Exiles | Entered Mines 2159 | -9/Mines | Discovered new exit (range 15) 2163 | -9/Mines | Identified exit to Materials 2181 | -9/Mines | Learned 2 Materials zone layouts 2182 | -9/Mines | Learned location of 1 exit from Materials 2196 | -9/Mines | Received a Rocket Launcher from a helpful Derelict 2211 | -9/Mines | Discovered exit to Materials (range 7) 2212 | -9/Mines | Reached level 7 2291 | -9/Mines | Assisted by bots powering up and referring to "LRC-V3" 2421 | -9/Mines | Entered Materials 2421 | -8/Materials | Accompanied by 3 allies 2422 | -8/Materials | Identified exit to Factory 2422 | -8/Materials | Core integrity fell below 50% 2422 | -8/Materials | Core integrity fell below 20% 2423 | -8/Materials | Reached level 8 2423 | -8/Materials | Upgraded with Power slot (x1) 2423 | -8/Materials | Upgraded with Weapon slot (x3) 2424 | -8/Materials | Loaded intel: 12 terminal locations 2425 | -8/Materials | Loaded intel: 1 garrison access location 2435 | -8/Materials | Identified XL Autogun Array 2484 | -8/Materials | Repaired Lgt. Nuclear Core 2595 | -8/Materials | Destroyed by X-57 Shotgunner with Shotgun Last Messages --------------- Retrieving latest reported positions... No active reinforcement squads found. K-01 Serf collects debris. ALERT: Suspicious intruders detected, dispatching Specialist reinforcements to area. H-61 Shepherd calls for reinforcements. ALERT: Hostile activity reported, dispatching reinforcements to area. Penetrated by Slug. Fusion Modulator explodes. G-47 Trooper destroyed. Power failure, Lgt. Nuclear Core shutdown. R-06 Scavenger collects Lgt. Nuclear Core. H-61 Shepherd destroyed. Destroyed Seismic Detector. Overheating: System interference. Shield Generator temporarily disabled. U-05 Engineer builds a Wall. Critical hit (Burn: +37). U-05 Engineer builds a Wall. U-05 Engineer destroyed. Map ----- +----------------------------------------------------+ | ### """ # # ? # # ????????????????????????? | | ### "R" / +? ? # ??#?????????????????????????? | | ### " " %# # #?? ??????????????????????????? | | ### %# # ? # #?????????????????????????? | | #?#] # ####?###? ?##????????????????????????? | | ####+### # ######## ? ??????????????????????????? | | ?### ##### ####### ? ???#?????????????????????? | | #### ##### ## ?## ?? ? ????????????????????? | | #### ##### ## ## ?Y ???? ? ??????????????????? | | ####+##### ## ## ? "?"???????????????????? | | ## ## ## ? ?????????????????????????? | | "" """ ## ## ######## ???"??????????????????? | | """ """ ## ## ##?##### ?""??""???????????????? | | "" " " ## ## #######? ?"""""?" ??????????????? | | # ##+######### ?? ??????????????? | | + % ? ? #????????????? | | # T %;##?? ? ? ###? ?????????????? | | # ;;"""";;## ? #?#??##???????????? | | ########## ;; / ? g #? ? ????????????? | | ? ## ;; g ###### ## ???????????????? | | """ ## ;; b%###?# ##???? ???????????? | | "Y" ## ;; g=;####? ##? ? ????????????? | | "?"??? ## ; " ##! #;#######????????? | | ?? """ ##a ; ! g;#;##%!% ??????? | | "?"?## ; g u*!%= x ??????? | | ?? """ ## ; ;;;@; * x ag g?????? | | ?? ?## #; ; ### #;#####??????????? | | ??#?##+#?# ##;;;;;;;;"##?#?#+###?###????????????? | | ##? ?? ## ##??? ? ??#? ???????????? | | ???^ ?? #### # # ###?# ?????##?????????????? | | #?##+##?###############??# ? ??#??????????????? | | ???????? ?#?##?#######??#??? ? ?????#????????????? | | ?????? ??#?##?#??###?#??##? ?"???????????????????? | | ???????????###?##??##?#?#?? ?"""????? ???????????? | | ??????????#??##??###??#### ? ??? ###????????????? | | ????????????##?#?#?#?#??## ?""????????????????